bitfinex/quotes_ETHUSD_20250806
["timestamp","ask_amount","ask_price","bid_price","bid_amount"]
[1754507039407,0.001,3688.5,3688.4,6.99240268]
[1754507040911,0.001,3688.5,3688.4,7.45980268]
[1754507043709,0.001,3688.5,3688.4,8.47691748]
[1754507043910,1e-08,3688.5,3688.4,8.47691748]
[1754507044209,1e-08,3688.5,3688.4,8.94731748]
[1754507045183,1e-08,3688.5,3688.4,8.47691748]
[1754507046589,1e-08,3688.5,3688.4,4.33091748]
[1754507046913,1e-08,3688.5,3688.4,8.48091748]
[1754507048900,1e-08,3688.5,3688.4,6.99540268]
[1754507049221,1e-08,3688.5,3688.4,7.46280268]
[1754507054203,1e-08,3688.5,3688.4,6.99540268]
[1754507054401,1e-08,3688.5,3688.4,7.46280268]
[1754507054608,1e-08,3688.5,3688.4,7.46480268]
[1754507054796,1e-08,3688.5,3688.4,8.52945748]
[1754507055496,1e-08,3688.5,3688.4,8.99985748]
[1754507056704,1e-08,3688.5,3688.4,9.54985748]
[1754507057537,1e-08,3688.5,3688.4,12.54985748]
[1754507057695,1e-08,3688.9,3688.8,2.71090869]
[1754507057896,1e-08,3688.9,3688.8,20.63910129]
[1754507058205,1e-08,3688.9,3688.8,21.29719221]
[1754507058719,1e-08,3688.9,3688.8,12.02009891]
[1754507059121,1e-08,3688.9,3688.8,11.00169891]
[1754507059911,1e-08,3688.9,3688.8,11.47209891]
[1754507060797,1e-08,3688.9,3688.8,11.00169891]
[1754507061625,1e-08,3688.9,3688.8,11.00069891]
[1754507062264,1e-08,3688.9,3688.8,6.85569891]
[1754507062427,1e-08,3688.9,3688.8,11.00069891]
[1754507062627,1e-08,3688.9,3688.8,11.47109891]
[1754507064728,1e-08,3688.9,3688.8,11.00069891]
[1754507065753,1e-08,3688.9,3688.8,6.85569891]
[1754507065954,0.4767,3689.1,3689.0,2.71076172]
[1754507066131,0.1352,3690.2,3690.0,2.70997528]
[1754507066330,0.1352,3690.2,3690.1,2.70995365]
[1754507066638,0.4767,3690.1,3690.0,6.85199702]
[1754507068071,0.9289,3690.1,3690.0,6.85199702]
[1754507069959,0.9289,3690.1,3690.0,2.70999702]
[1754507070272,0.9289,3690.1,3690.0,6.85199702]
[1754507070442,0.9289,3690.1,3689.6,0.1352]
[1754507070668,1.33531,3690.0,3689.7,6.85122446]
[1754507070838,0.40641,3690.0,3689.8,2.71017145]
[1754507071169,0.9257,3689.9,3689.8,2.71017145]
[1754507071671,0.9257,3689.9,3689.7,6.85121856]
[1754507071972,0.9257,3689.8,3689.7,6.85121856]
[1754507072853,0.9257,3689.8,3689.7,2.71021856]
[1754507073062,0.9257,3689.8,3689.7,6.85021856]
[1754507073938,0.13352002,3691.0,3690.9,2.70936627]
[1754507074157,0.1352,3691.5,3690.9,4.139]
[1754507074469,0.13535236,3692.0,3691.0,2.70925347]
[1754507074777,0.9257,3691.5,3691.4,2.70899929]
[1754507075267,0.1352,3691.8,3691.3,4.176]
[1754507075476,0.4544,3691.6,3691.5,2.70892591]
[1754507075650,0.9257,3691.6,3691.5,2.70892591]
[1754507075967,0.9257,3691.6,3691.5,6.88392591]
[1754507078763,0.9257,3691.6,3691.5,4.175]
[1754507078966,0.9257,3691.6,3691.4,0.1352]
[1754507079166,2.24597933,3691.5,3691.2,4.172]
[1754507079378,0.9257,3691.4,3691.0,2.70928444]
[1754507079570,0.1352,3691.3,3691.1,4.172]
[1754507079771,0.9257,3691.4,3691.1,4.172]
[1754507079772,0.9257,3691.2,3691.1,4.172]
[1754507079960,1.0609,3691.2,3690.9,4.172]
[1754507080160,1.95949933,3691.1,3690.9,6.88135307]
[1754507080470,0.9257,3691.0,3690.9,6.88135307]
[1754507080680,1.03379933,3691.1,3690.9,6.88135307]
[1754507080884,1.03379933,3691.1,3691.0,2.70929287]
[1754507081070,1.03379933,3691.1,3690.9,6.88136229]
[1754507081471,0.9257,3691.0,3690.9,6.88136229]
[1754507081672,0.4544,3691.0,3690.6,0.1352]
[1754507081872,0.9257,3691.0,3690.9,2.70936627]
[1754507082092,0.9257,3691.0,3690.9,6.88036627]
[1754507082680,0.9257,3691.0,3690.9,4.171]
[1754507083297,0.9257,3691.0,3690.6,2.84477338]
[1754507083585,0.9257,3690.9,3690.7,6.87951016]
[1754507083782,0.9257,3690.8,3690.7,6.87951016]
[1754507084406,0.9257,3690.8,3690.7,2.70951016]
[1754507084624,0.9257,3690.8,3690.7,4.169]
[1754507084938,0.9257,3690.8,3690.4,4.168]
[1754507084939,4.0609,3690.8,3690.4,4.168]
[1754507085092,1.94042939,3690.7,3690.4,6.87767603]
[1754507085292,0.1352,3690.6,3690.4,4.168]
[1754507085607,0.9257,3690.5,3690.4,4.168]
[1754507086202,0.9257,3690.5,3690.2,2.70988022]
[1754507086404,0.1352,3690.6,3690.4,2.70973336]
[1754507086622,1.47790227,3690.6,3690.4,2.70973336]
[1754507087016,0.9257,3690.5,3690.4,2.70973336]
[1754507088114,0.9257,3690.5,3690.3,4.169]
[1754507088320,1.47790227,3690.6,3690.3,4.169]
[1754507088625,0.9257,3690.4,3690.3,4.169]
[1754507088930,0.9257,3690.4,3690.3,6.87880679]
[1754507089131,0.9257,3690.4,3690.3,6.87580679]
[1754507089637,1.93230227,3690.6,3690.5,2.70965993]
[1754507089923,2.40360227,3690.6,3690.5,2.70965993]
[1754507090324,1.47790227,3690.6,3690.5,2.70965993]
[1754507090525,0.1352,3690.7,3690.6,2.70958651]
[1754507090724,0.1352,3691.1,3691.0,2.70929287]
[1754507091797,13.4450933,3691.4,3691.3,2.70907268]
[1754507091798,4.3032,3691.4,3691.3,2.70907268]
[1754507092021,7.3032,3691.4,3691.3,2.70907268]
[1754507092828,4.166,3691.6,3691.3,3.17787268]
[1754507093343,0.001,3691.9,3691.8,2.70870578]
[1754507093544,1.02137933,3691.9,3691.7,2.70870716]
[1754507093722,4.02137933,3691.9,3691.7,2.70870716]
[1754507094358,4.15657933,3691.9,3691.4,5.199]
[1754507094559,0.1362,3691.9,3691.8,2.70870578]
[1754507095337,0.1362,3691.9,3691.6,0.4688]
[1754507096952,0.1362,3691.9,3691.7,2.70877915]
[1754507097462,0.1362,3691.9,3691.7,2.70873591]
[1754507097849,0.1362,3691.9,3691.7,2.70875254]
[1754507098054,0.1362,3691.9,3691.8,2.70870578]
[1754507098560,0.1362,3691.9,3691.6,2.70884368]
[1754507098561,0.1362,3691.9,3691.6,4.164]
[1754507098763,0.9257,3691.8,3691.3,4.163]
[1754507098962,0.9257,3691.8,3691.1,4.163]
[1754507098963,9.4122933,3691.5,3691.1,4.163]
[1754507099263,3.9257,3691.4,3690.9,4.2982]
[1754507099449,3.0,3691.4,3691.1,2.70921672]
[1754507099671,0.4713,3691.3,3691.2,2.70914607]
[1754507099885,3.9257,3691.4,3691.2,2.70914607]
[1754507100477,3.0,3691.4,3690.9,0.1352]
[1754507100759,1.0609,3691.3,3690.9,4.163]
[1754507100970,1.0609,3691.3,3690.9,6.87235102]
[1754507101144,0.9324,3691.2,3690.9,6.87235102]
[1754507101344,0.1352,3691.3,3690.9,6.87235102]
[1754507101553,0.1352,3691.3,3690.9,2.70935102]
[1754507101758,1.0676,3691.3,3691.0,2.70929051]
[1754507102158,1.0676,3691.3,3690.8,7.00663778]
[1754507102159,1.0676,3691.3,3691.1,2.70921564]
[1754507102360,1.0676,3691.3,3690.9,2.70930775]
[1754507102969,0.9324,3691.2,3690.8,2.84462834]
[1754507103181,0.1352,3691.1,3690.9,2.70935482]
[1754507103559,0.1352,3691.1,3690.8,4.161]
[1754507103760,0.9324,3691.0,3690.8,4.161]
[1754507103983,3.9324,3691.0,3690.6,0.1352]
[1754507104170,0.1352,3690.8,3690.6,4.161]
[1754507104368,0.9324,3690.7,3690.4,2.70973336]
[1754507104575,0.9324,3690.7,3690.5,6.87065638]
[1754507104886,0.9324,3690.7,3690.5,2.70965638]
[1754507105088,0.9324,3690.7,3690.4,6.87071163]
[1754507105294,0.9324,3690.6,3690.1,0.6248]
[1754507105452,0.9324,3690.6,3690.3,2.70980679]
[1754507105651,0.1352,3690.8,3690.5,2.70961187]
[1754507106149,0.1352,3690.8,3690.6,2.70958302]
[1754507106556,1.0676,3690.8,3690.5,2.70964398]
[1754507106751,1.0676,3690.8,3690.4,2.70970983]
[1754507106970,0.9324,3690.7,3690.4,6.86968097]
[1754507107176,0.9324,3690.7,3690.2,3.1994515]
[1754507107401,0.9324,3690.7,3690.2,3.1994626]
[1754507107762,0.9324,3690.7,3690.4,2.70968884]
[1754507107967,1.0676,3690.6,3690.4,4.159]
[1754507108188,1.0676,3690.6,3690.4,6.86873022]
[1754507108502,0.1352,3690.6,3690.5,2.70965993]
[1754507108972,0.1352,3690.6,3690.5,3.19925993]
[1754507110769,3.0,3691.4,3691.0,2.70927054]
[1754507110970,0.1352,3691.1,3690.9,2.70935878]
[1754507111299,0.1352,3691.1,3691.0,2.70929287]
[1754507111804,0.1352,3691.1,3691.0,3.62949287]
[1754507112466,4.157,3691.3,3691.2,2.70914607]
[1754507112688,7.157,3691.3,3691.2,2.70914607]
[1754507114268,3.0,3691.3,3691.2,2.70914607]
[1754507114469,3.0,3691.3,3691.2,3.19874607]
[1754507114774,3.0,3691.3,3691.2,2.70914607]
[1754507115306,3.0,3691.3,3691.2,3.19874607]
[1754507115802,3.0,3691.3,3691.2,2.70914607]
[1754507115965,3.78362,3691.3,3691.0,2.70929287]
[1754507116168,3.78362,3691.3,3690.9,6.86436042]
[1754507116169,0.9324,3691.2,3690.9,6.86436042]
[1754507116406,0.1352,3691.1,3690.9,2.70936042]
[1754507116607,1.0676,3691.1,3690.7,2.7095131]
[1754507116805,9.4122933,3691.1,3690.4,0.6248]
[1754507116980,3.0,3691.0,3690.4,3.33452072]
[1754507117189,3.4701,3691.0,3690.5,4.155]
[1754507117374,0.9324,3690.9,3690.5,4.155]
[1754507117573,0.9324,3690.9,3690.5,4.6446]
[1754507117887,3.0,3691.0,3690.6,3.19918172]
[1754507118300,3.0,3691.0,3690.9,2.70936627]
[1754507120316,3.0,3691.0,3690.8,2.70941804]
[1754507120486,3.0,3691.0,3690.6,2.70958581]
[1754507120487,3.0,3691.0,3690.9,2.70936627]
[1754507121520,3.0,3691.0,3690.8,2.70941155]
[1754507121706,3.0,3691.0,3690.8,2.70942375]
[1754507122334,3.0,3691.0,3690.5,4.6426]
[1754507122652,3.0,3691.0,3690.8,2.7093945]
[1754507122827,3.0,3691.0,3690.9,2.70936627]
[1754507125819,3.0,3691.0,3690.9,3.62956627]
[1754507126017,3.0,3691.0,3690.9,2.70936627]
[1754507129364,3.9324,3691.0,3690.8,2.70941752]
[1754507129778,3.0,3691.0,3690.8,2.70941752]
[1754507130763,3.0,3691.0,3690.9,2.70936627]
[1754507131554,3.0,3691.0,3690.8,2.70940934]
[1754507132684,3.0,3691.0,3690.9,2.70936627]
[1754507133363,3.0,3691.0,3690.9,3.18836627]
[1754507134585,3.0,3691.0,3690.7,2.7095131]
[1754507134789,3.0,3691.0,3690.9,3.18836627]
[1754507135088,3.0,3691.0,3690.9,3.63786627]
[1754507135654,0.001,3691.7,3690.9,4.623]
[1754507135877,0.1352,3691.4,3691.3,2.70907268]
[1754507136256,0.1352,3691.4,3691.3,3.18807268]
[1754507136757,0.1352,3691.4,3691.3,3.63757268]
[1754507137311,0.1352,3691.4,3691.3,3.18807268]
[1754507137506,0.1352,3691.4,3691.3,2.70907268]
[1754507138113,1.52795,3691.4,3690.9,6.852349]
[1754507138315,0.4672,3691.3,3691.2,2.709139]
[1754507138527,0.9195,3691.3,3691.2,2.709139]
[1754507138691,0.1352,3691.4,3691.2,2.709139]
[1754507138692,1.0547,3691.4,3691.2,2.709139]
[1754507139104,0.5875,3691.4,3691.2,2.709139]
[1754507139307,0.5875,3691.4,3691.3,2.70907268]
[1754507139875,0.1352,3691.4,3691.2,2.70913885]
[1754507140069,4.142,3691.3,3691.2,2.70913885]
[1754507141207,4.142,3691.3,3691.1,2.70920276]
[1754507141512,4.142,3691.3,3690.4,2.70968838]
[1754507141513,0.1352,3690.9,3690.4,4.141]
[1754507141711,0.1352,3690.7,3690.5,2.70965993]
[1754507142214,0.1352,3690.7,3690.6,2.70958651]
[1754507142703,0.1352,3690.7,3690.5,2.70963645]
[1754507142901,0.1352,3690.7,3690.4,3.18869155]
[1754507143099,0.1352,3690.7,3690.2,0.1352]
[1754507143100,9.2770933,3690.6,3690.2,2.84502866]
[1754507143300,9.2770933,3690.6,3690.3,2.70978934]
[1754507143613,0.9195,3690.5,3690.3,2.70978934]
[1754507143989,9.2770933,3690.6,3690.4,2.70972519]
[1754507144714,3.0,3690.6,3690.5,2.70965993]
[1754507145489,3.0,3690.6,3690.2,2.70987908]
[1754507145691,0.9195,3690.5,3690.1,2.70994612]
[1754507146010,0.9195,3690.4,3690.1,2.709908]
[1754507146518,0.9195,3690.4,3690.1,2.70994364]
[1754507147183,0.9195,3690.4,3690.2,2.70986575]
[1754507147383,0.9195,3690.4,3690.1,2.70994696]
[1754507147798,4.14,3690.5,3690.1,2.70994696]
[1754507147984,3.0,3690.4,3690.0,7.3280265]
[1754507148399,3.0,3690.4,3690.1,0.479]
[1754507148614,3.0,3690.4,3690.3,2.70980679]
[1754507149115,3.0,3690.4,3690.3,3.18880679]
[1754507151505,3.0,3690.4,3690.3,3.63830679]
[1754507151695,4.138,3690.7,3690.6,2.70958651]
[1754507152022,3.0,3691.1,3690.9,2.70930888]
[1754507152228,3.0,3690.9,3690.8,2.70941329]
[1754507153035,3.0,3690.9,3690.8,3.18841329]
[1754507153036,4.138,3690.9,3690.8,3.18841329]
[1754507154211,4.138,3690.9,3690.8,3.63791329]
[1754507154434,0.1352,3691.0,3690.8,3.63791329]
[1754507154435,3.1352,3691.0,3690.9,2.70936627]
[1754507154630,3.1352,3691.0,3690.9,3.63786627]
[1754507155030,3.1352,3691.0,3690.9,3.18836627]
[1754507156638,0.001,3691.7,3691.1,2.7091742]
[1754507156639,3.0,3691.2,3691.1,2.7091742]
[1754507156813,4.2732,3691.3,3691.1,2.70921747]
[1754507156814,3.1352,3691.3,3691.1,2.70921747]
[1754507158044,3.1352,3691.3,3691.2,2.70914607]
[1754507158614,3.5875,3691.3,3691.1,2.7092164]
[1754507158834,7.5903,3691.2,3691.1,2.7092164]
[1754507159048,7.138,3691.2,3691.1,2.7092164]
[1754507159671,7.138,3691.2,3691.0,2.70927005]
[1754507159672,3.0,3691.1,3691.0,2.70927005]
[1754507160048,4.138,3691.2,3691.1,2.70921947]
[1754507160216,3.0,3691.1,3691.0,2.70928742]
[1754507160416,3.6024,3691.1,3691.0,2.70928742]
[1754507160618,3.6024,3691.1,3690.8,6.84736815]
[1754507160955,3.6024,3691.1,3690.8,2.70936815]
[1754507160956,0.9037,3691.0,3690.8,2.70936815]
[1754507161123,0.9037,3691.0,3690.4,0.6306]
[1754507161328,4.91557426,3690.9,3690.5,4.138]
[1754507161554,4.91557426,3690.9,3690.7,2.70948415]
[1754507162059,0.1352,3690.8,3690.7,2.70948415]
[1754507162468,0.001,3691.0,3690.9,2.70936627]
[1754507162753,3.001,3691.0,3690.9,3.66126627]
[1754507162953,3.001,3691.0,3690.9,3.20476627]
[1754507163721,3.001,3691.0,3690.9,2.70936627]
[1754507163920,3.9047,3691.0,3690.8,2.7094275]
[1754507164217,3.9047,3691.0,3690.9,2.70936627]
[1754507164218,3.001,3691.0,3690.9,2.70936627]
[1754507164625,3.001,3691.0,3690.9,3.20476627]
[1754507165042,0.001,3691.0,3690.9,3.20476627]
[1754507165458,3.001,3691.0,3690.9,3.20476627]
[1754507166946,0.001,3691.0,3690.9,3.20476627]
[1754507168326,0.001,3691.0,3690.9,4.66648783]
[1754507168523,0.001,3691.0,3690.9,3.66126627]
[1754507169250,0.001,3691.0,3690.9,3.20476627]
[1754507169646,0.001,3691.0,3690.9,2.70936627]
[1754507171376,0.9047,3691.0,3690.9,2.70936627]
[1754507171674,0.001,3691.0,3690.9,2.70936627]
[1754507172190,0.9047,3691.0,3690.6,6.84657322]
[1754507172384,3.9047,3691.0,3690.9,2.70936627]
[1754507172740,3.9047,3691.0,3690.4,0.4954]
[1754507172741,4.74639933,3691.0,3690.4,0.4954]
[1754507172941,0.1352,3690.8,3690.7,2.70944635]
[1754507176367,0.1352,3690.8,3690.5,4.137]
[1754507176679,1.0389,3690.8,3690.6,2.70957504]
[1754507177077,1.0389,3690.8,3690.7,2.7095131]
[1754507177281,0.4505,3690.7,3689.8,0.4585]
[1754507177586,9.2770933,3690.5,3690.3,2.70975399]
[1754507177740,0.1352,3690.4,3690.3,2.70975399]
[1754507179261,0.1352,3690.4,3690.3,3.20515399]
[1754507179697,0.1352,3690.4,3690.3,3.66165399]
[1754507180111,3.0,3690.6,3690.5,2.70965993]
[1754507180399,3.1352,3690.6,3690.5,2.70965993]
[1754507180775,0.1352,3690.6,3690.5,3.20505993]
[1754507180975,3.0,3690.7,3690.6,2.70958651]
[1754507181398,3.0,3690.7,3690.3,2.84499113]
[1754507181562,3.9037,3690.7,3690.6,2.70958651]
[1754507181899,5.63557933,3690.7,3690.6,2.70958651]
[1754507182062,5.77077933,3690.7,3690.5,2.70964099]
[1754507182711,5.77077933,3690.7,3690.6,2.70958651]
[1754507183208,4.86707933,3690.7,3690.6,2.70958651]
[1754507183493,3.1352,3690.7,3690.6,2.70958651]
[1754507184801,3.1352,3690.7,3690.5,2.70964736]
[1754507185004,3.1352,3690.7,3690.3,3.16629224]
[1754507185005,0.9037,3690.6,3690.2,2.70986443]
[1754507185203,8.0407,3690.6,3690.5,2.70965993]
[1754507185699,7.137,3690.6,3690.5,2.70965993]
[1754507186720,7.137,3690.6,3690.5,3.20505993]
[1754507187019,7.137,3690.6,3690.5,3.66155993]
[1754507187376,7.137,3690.6,3690.5,3.20505993]
[1754507187576,7.137,3690.6,3690.5,2.70965993]
[1754507190923,7.137,3690.6,3690.4,2.70972845]
[1754507191120,7.137,3690.6,3690.3,2.70975732]
[1754507191121,0.9191,3690.5,3690.3,2.70975732]
[1754507191320,0.1352,3690.4,3690.3,2.70975732]
[1754507191484,1.0543,3690.4,3690.3,2.70975732]
[1754507191996,0.5709,3690.4,3690.3,2.70975732]
[1754507192202,0.1352,3690.4,3690.3,2.70975732]
[1754507193080,0.1352,3690.4,3690.3,3.62415732]
[1754507193605,0.1352,3690.4,3690.3,2.70975732]
[1754507193806,1.0543,3690.4,3690.3,2.70975732]
[1754507194389,5.1913,3690.4,3690.2,2.70985362]
[1754507195309,5.1913,3690.4,3690.3,2.70980679]
[1754507196119,5.1913,3690.4,3690.2,2.7098592]
[1754507196613,3.4834,3690.3,3690.1,0.002]
[1754507196814,17.0992933,3690.2,3690.1,0.002]
[1754507197114,20.72827352,3690.2,3690.1,0.002]
[1754507197875,18.0183933,3690.2,3690.1,0.002]
[1754507198118,23.14110217,3690.2,3690.1,0.002]
[1754507198613,20.43122195,3690.2,3690.1,0.002]
[1754507199194,23.14110217,3690.2,3690.1,0.002]
[1754507200279,20.43122195,3690.2,3690.1,0.002]
[1754507200484,23.14110217,3690.2,3690.1,0.002]
[1754507200903,23.14110217,3690.2,3689.8,0.002]
[1754507200904,3.26010054,3689.9,3689.8,0.002]
[1754507201184,13.2609624,3689.9,3689.8,0.002]
[1754507201499,14.1800624,3689.9,3689.8,0.002]
[1754507203217,14.1800624,3689.9,3689.4,0.002]
[1754507203218,3.26039436,3689.5,3689.4,0.002]
[1754507203516,16.80968766,3689.5,3689.4,0.002]
[1754507203696,19.17426444,3689.5,3689.4,0.002]
[1754507203891,23.09336444,3689.5,3689.4,0.002]
[1754507204092,23.09336444,3689.5,3688.8,0.002]
[1754507204093,6.2608352,3688.9,3688.8,0.002]
[1754507204305,3.26112918,3688.5,3688.4,0.002]
[1754507204493,16.67522248,3688.5,3688.4,0.002]
[1754507204830,17.00535978,3688.5,3688.4,0.002]
[1754507205030,16.08625978,3688.5,3688.4,0.002]
[1754507206031,19.71648896,3688.5,3688.4,0.002]
[1754507206233,22.71648896,3688.5,3688.4,0.002]
[1754507208740,21.79938896,3688.5,3688.4,0.002]
[1754507209104,22.71848896,3688.5,3688.4,0.002]
[1754507210235,20.00735978,3688.5,3688.4,0.002]
[1754507211207,22.71848896,3688.5,3688.4,0.002]
[1754507212128,20.00735978,3688.5,3688.4,0.002]
[1754507212645,22.71848896,3688.5,3688.4,0.002]
[1754507213104,19.08825978,3688.5,3688.4,0.002]
[1754507213738,19.08825978,3688.5,3688.4,0.485]
[1754507214137,19.08825978,3688.5,3688.4,0.002]
[1754507214932,19.08825978,3688.5,3688.4,0.485]
[1754507215563,9.2770933,3689.1,3688.4,0.485]
[1754507215729,0.1352,3688.5,3688.4,3.62759415]
[1754507215926,4.2742,3688.5,3688.4,3.62759415]
[1754507216351,7.2742,3688.5,3688.4,3.62759415]
[1754507216843,3.0,3688.5,3688.4,3.62759415]
[1754507217219,4.2742,3688.8,3688.5,2.71112918]
[1754507217523,4.139,3688.8,3688.7,2.71098218]
[1754507217835,0.1352,3688.9,3688.8,2.71090869]
[1754507217836,7.2742,3688.9,3688.8,2.71090869]
[1754507218037,7.2742,3688.9,3688.8,0.483]
[1754507218424,7.2742,3688.9,3688.8,3.19390869]
[1754507218724,7.2742,3688.9,3688.8,0.483]
[1754507219135,3.0,3688.8,3688.6,0.4314]
[1754507219333,4.2742,3688.7,3688.6,0.483]
[1754507219540,7.2742,3688.7,3688.6,0.483]
[1754507220164,3.0,3688.6,3688.4,3.14459624]
[1754507220368,4.139,3688.5,3688.4,2.71319624]
[1754507220973,4.139,3688.5,3688.4,0.002]
[1754507221188,5.61580933,3688.5,3688.4,0.002]
[1754507221556,5.61580933,3688.5,3688.4,2.71320268]
[1754507221965,5.61580933,3688.5,3688.4,0.002]
[1754507222290,5.61580933,3688.5,3688.4,2.71320268]
[1754507222487,5.61580933,3688.5,3688.4,0.002]
[1754507222694,5.61580933,3688.5,3688.4,3.19670268]
[1754507222851,4.2742,3688.5,3688.4,3.19670268]
[1754507223056,4.2742,3688.5,3688.4,3.66440268]
[1754507224483,4.139,3688.5,3688.4,3.66440268]
[1754507224679,4.139,3688.5,3688.4,2.71320268]
[1754507224883,4.139,3688.5,3688.4,0.002]
[1754507224884,5.4257662,3688.5,3688.4,0.002]
[1754507225403,5.4257662,3688.5,3688.4,2.71320268]
[1754507225900,5.4257662,3688.5,3688.4,3.19670268]
[1754507225901,4.139,3688.5,3688.4,3.19670268]
[1754507226284,4.139,3688.5,3688.4,0.002]
[1754507226460,4.139,3688.5,3688.4,2.71320268]
[1754507226856,4.139,3688.5,3688.4,3.19670268]
[1754507229411,4.139,3688.5,3688.4,0.002]
[1754507230336,8.76522257,3688.5,3688.4,0.002]
[1754507230533,12.94755175,3688.5,3688.4,0.002]
[1754507231439,12.94755175,3688.5,3688.0,0.002]
[1754507231440,3.26142322,3688.1,3688.0,0.002]
[1754507231742,16.81171652,3688.1,3688.0,0.002]
[1754507232038,17.28271652,3688.1,3688.0,0.002]
[1754507232238,20.03232206,3688.1,3688.0,0.002]
[1754507232842,20.51582206,3688.1,3688.0,0.002]
[1754507233342,20.51582206,3688.1,3687.6,0.002]
[1754507233343,6.26171733,3687.7,3687.6,0.002]
[1754507233518,19.81191705,3687.7,3687.6,0.002]
[1754507233723,23.16569197,3687.7,3687.6,0.002]
[1754507235242,20.45397464,3687.7,3687.6,0.002]
[1754507235422,23.65119197,3687.7,3687.6,0.002]
[1754507236511,20.01827464,3687.7,3687.6,0.002]
[1754507236711,19.53277464,3687.7,3687.6,0.002]
[1754507237142,15.50347564,3687.7,3687.6,0.002]
[1754507237352,19.64247564,3687.7,3687.6,0.4855]
[1754507237528,19.64247564,3687.7,3687.6,0.002]
[1754507237717,20.56367564,3687.7,3687.6,0.002]
[1754507237925,23.27539297,3687.7,3687.6,0.002]
[1754507238825,23.27539297,3687.7,3687.2,0.002]
[1754507238826,6.26201149,3687.3,3687.2,0.002]
[1754507239026,19.81410479,3687.3,3687.2,0.002]
[1754507239233,20.93628468,3687.3,3687.2,0.002]
[1754507243421,21.04500868,3687.3,3687.2,0.002]
[1754507246661,2.71208505,3687.2,3687.1,1e-08]
[1754507246824,2.71208505,3687.2,3686.8,0.002]
[1754507246825,6.26230573,3686.9,3686.8,0.002]
[1754507247023,6.26230573,3686.9,3686.4,0.002]
[1754507247024,3.26260002,3686.5,3686.4,0.002]
[1754507247259,19.67869332,3686.5,3686.4,0.002]
[1754507247460,20.73589332,3686.5,3686.4,0.002]
[1754507247642,21.9961737,3686.5,3686.4,0.002]
[1754507248260,22.1049237,3686.5,3686.4,0.002]
[1754507250263,5.05503038,3686.5,3686.4,0.002]
[1754507250448,10.51135002,3686.5,3686.4,0.4855]
[1754507250648,10.64735002,3686.5,3686.4,0.4855]
[1754507250862,10.64735002,3686.5,3686.4,0.002]
[1754507251866,11.56955002,3686.5,3686.4,0.002]
[1754507252829,11.56955002,3686.5,3686.2,0.002]
[1754507253064,8.88984106,3686.4,3686.2,0.002]
[1754507253268,3.26274719,3686.3,3686.2,0.002]
[1754507253468,15.53991409,3686.2,3685.4,0.4363]
[1754507253777,16.59811409,3686.2,3685.4,0.927]
[1754507254069,16.59811409,3686.2,3685.6,0.4907]
[1754507254770,18.6775304,3686.2,3685.6,0.4907]
[1754507254931,21.40619226,3686.2,3685.6,0.4907]
[1754507255137,13.26748265,3686.2,3686.1,0.929]
[1754507255336,10.53882079,3686.2,3686.1,0.929]
[1754507255832,6.39882079,3686.2,3686.1,0.929]
[1754507256168,4.14,3686.2,3686.1,0.929]
[1754507258172,7.14,3686.2,3686.1,0.929]
[1754507259985,7.14,3686.2,3686.1,0.4927]
[1754507260194,8.6752764,3686.2,3686.1,0.002]
[1754507260355,12.31029719,3686.2,3686.1,0.002]
[1754507260555,13.12595919,3686.2,3686.1,0.002]
[1754507262352,12.20375919,3686.2,3686.1,0.002]
[1754507263100,12.66735919,3686.2,3686.1,0.002]
[1754507263250,12.20375919,3686.2,3686.1,0.002]
[1754507263754,13.12595919,3686.2,3686.1,0.002]
[1754507264169,12.66735919,3686.2,3686.1,0.002]
[1754507264368,13.12595919,3686.2,3686.1,0.002]
[1754507264782,12.20375919,3686.2,3686.1,0.002]
[1754507265449,13.12595919,3686.2,3686.1,0.002]
[1754507266067,12.33975919,3686.2,3686.1,0.002]
[1754507267084,5.4869384,3686.2,3686.1,0.002]
[1754507267260,7.276,3686.2,3686.1,0.929]
[1754507267457,7.826,3686.2,3686.1,0.929]
[1754507268784,10.53882079,3686.2,3686.1,0.929]
[1754507268975,10.53882079,3686.2,3686.1,0.002]
[1754507269291,11.46102079,3686.2,3686.1,0.002]
[1754507269464,14.09560101,3686.2,3686.1,0.002]
[1754507272787,14.58630101,3686.2,3686.1,0.002]
[1754507276696,23.8775534,3686.2,3686.1,0.002]
[1754507279799,22.9553534,3686.2,3686.1,0.002]
[1754507280904,22.9553534,3686.2,3686.1,0.4927]
[1754507281199,12.91795239,3686.2,3686.1,0.9462]
[1754507281400,7.7667,3686.2,3686.1,0.9462]
[1754507281590,8.3167,3686.2,3686.1,0.9462]
[1754507281795,10.53882079,3686.2,3686.1,0.9462]
[1754507282372,7.826,3686.2,3686.1,0.9462]
[1754507282704,10.53882079,3686.2,3686.1,0.9462]
[1754507283071,7.826,3686.2,3686.1,0.9462]
[1754507283903,15.006,3686.2,3686.1,0.9462]
[1754507284401,17.71882079,3686.2,3686.1,0.9462]
[1754507284782,17.71882079,3686.2,3686.1,0.4927]
[1754507284982,14.80875167,3686.2,3686.1,0.4927]
[1754507285206,18.94875167,3686.2,3686.1,0.002]
[1754507287441,18.94875167,3686.2,3686.1,0.4928]
[1754507287609,16.23593088,3686.2,3686.1,0.9463]
[1754507287929,3.136,3686.2,3686.1,0.9463]
[1754507288076,7.14,3686.2,3686.1,0.9463]
[1754507288275,7.14,3686.2,3686.1,3.65919438]
[1754507289880,4.14,3686.5,3686.1,0.9463]
[1754507290087,7.14,3686.5,3686.4,2.71267361]
[1754507290288,3.0,3686.5,3686.4,3.65697361]
[1754507291499,0.001,3687.0,3686.9,2.71230573]
[1754507292013,0.001,3687.0,3686.9,3.79260573]
[1754507293093,0.001,3687.0,3686.9,3.81972878]